Cogmind - Beta 17.1 @@@ ROGUE MODE // 2026.09.03 @ 05:12:16 Player: TheSkyeDoctor Result: Destroyed by Lightning with EMDS Performance ------------- Evolutions (8) 4000 Regions Visited (30) 6000 Robots Destroyed (228) 1140 Value Destroyed (9347) 9347 Prototype IDs (63) 1260 Alien Tech Used (5) 1000 Bonus (11098) 11098 TOTAL SCORE: 33845 Bonus ------- High Alert Combat Kills 445 Follower Combat Kills 2385 Aligned with FarCom 300 Met Data Miner 300 Met Zhirov 300 Met Warlord at Base 500 MAIN.C Attacked Warlord 500 Met R17 at Cetus 500 Met Warlord at Research 2000 Invited to Help at Command 2000 Met Sigix 2000 Friendly Fire -132 Cogmind --------- Core Integrity 0/1450 Matter 5/300 Energy 64/100 System Corruption 31% Temperature Cool (4) Movement Hovering (40) Location -2/Quarantine Parts ------- > --- POWER (2) -------- (None) > --- PROPULSION (8) --- Linear Gravjet > --- UTILITY (9) ------ Advanced Signal Interpreter 0b10 Decoder Chip [Scout] Advanced Target Analyzer > --- WEAPON (4) ------- (None) > --- INVENTORY (5) ---- Vortex Chain Reactor Biometal Heavy Treads Bore Cannon Peak State ------------ > --- POWER ------------ Vortex Chain Reactor > --- PROPULSION ------- Nuclear Pulse Thruster Nuclear Pulse Thruster Nuclear Pulse Thruster Q-thruster Q-thruster Cooled Impulse Thruster Impulse Thruster Array > --- UTILITY ---------- Large Storage Unit Advanced Energy Well Advanced Signal Interpreter Advanced Signal Interpreter Seismic Detector 0b10 Decoder Chip [Scout] Improved Targeting Computer Improved Target Analyzer Experimental Cloaking Device > --- WEAPON ----------- Tiamat Missile Launcher Ragnarok Missile Launcher > --- INVENTORY -------- Light Quantum Reactor Improved Quantum Reactor High-capacity Matter Pod 0b10 Decoder Chip [Scout] Advanced Remote Shield Ragnarok Missile Launcher [Rating: 139] Favorites ----------- Power Ion Engine Engine Ion Engine Power Core Fission Core Reactor Vortex Chain Reactor Propulsion Armored Treads Treads Armored Treads Leg Carbon-fiber Leg Wheel Wheel Hover Unit Linear Gravjet Flight Unit Nuclear Pulse Thruster Utility Huge Storage Unit Device Advanced Cooling System Storage Huge Storage Unit Processor Terrain Scan Processor Protection Improved Medium Armor Plating Artifact Phase Redirector Weapon Advanced Assault Cannon Energy Gun Plasma Rifle Energy Cannon Improved EM Pulse Cannon Ballistic Gun Minigun Ballistic Cannon Advanced Assault Cannon Launcher Heavy Shock Bomb Launcher Special Weapon Improved Plasma Cutter Impact Weapon Great Maul Slashing Weapon Phasing Sabre Special Melee Weapon Datajack Build | -11 -10 -10 -9 -9 -9 -8 -8 -7 -7 -7 -6 -6 -6 -6 -6 -6 -5 -5 -5 -5 -4 -4 -4 -4 -4 -3 -3 -3 -2 -2 ------- Run | Yrd Mat Min Mat Min Exi Min Mat Fac Low Dat Pro Fac Ext Cet Arc Hub Fac Upp Upp Zhi Pro Fac Upp Upp War Pro Res Tes Res Qua Slots Evolved 16 | . . . 2 . . . 2 2 . . . 2 . . . . 2 . . . . 2 . . . . 2 . 2 . Power 1 | . . . . . . . . . . . . . . . . . . . . . . . . . . . 1 . . . Propulsion 6 | . . . . . . . . . . . . 2 . . . . . . . . . 2 . . . . 1 . 1 . Utility 7 | . . . 1 . . . 2 1 . . . . . . . . 2 . . . . . . . . . . . 1 . Weapon 2 | . . . 1 . . . . 1 . . . . . . . . . . . . . . . . . . . . . . Parts Attached 170 | 7 2 . 10 2 1 1 3 6 . . 6 16 10 8 3 5 16 3 7 5 3 10 2 3 6 . 1 8 8 18 Power 14 | 1 . . . . . 1 . 1 . . . 2 . . . 1 1 . 1 1 . 1 . . . . 1 . . 3 Engine 5 | 1 . . . . . 1 . 1 . . . 1 . . . . 1 . . . . . . . . . . . . . Core 2 | . . . . . . . . . . . . 1 . . . . . . 1 . . . . . . . . . . . Reactor 7 | . . . . . . . . . . . . . . . . 1 . . . 1 . 1 . . . . 1 . . 3 Propulsion 52 | 2 1 . 2 . . . 1 1 . . 1 5 5 2 2 2 4 . 3 3 1 2 . . 2 . . 2 4 7 Treads 25 | 2 . . 1 . . . 1 . . . 1 5 5 2 2 2 4 . . . . . . . . . . . . . Leg 2 | . . . . . . . . . . . . . . . . . . . 2 . . . . . . . . . . . Wheel 3 | . 1 . 1 . . . . 1 . . . . . . . . . . . . . . . . . . . . . . Hover 1 | . . . . . . . . . . . . . . . . . . . . . . . . . . . . . . 1 Flight 21 | . . . . . . . . . . . . . . . . . . . 1 3 1 2 . . 2 . . 2 4 6 Utility 50 | 2 1 . 3 1 . . 2 2 . . 2 6 . 3 . . 4 2 2 1 1 4 1 3 3 . . 2 3 2 Device 25 | 1 . . 2 . . . 1 1 . . 1 3 . 1 . . . 1 2 . 1 2 1 2 3 . . 2 1 . Storage 5 | 1 1 . . . . . . . . . . . . . . . 1 . . . . 1 . . . . . . 1 . Processor 14 | . . . . . . . 1 . . . 1 2 . 2 . . 2 1 . 1 . 1 . 1 . . . . 1 1 Hackware . | . . . . . . . . . . . . . . . . . . . . . . . . . . . . . . . Protection 5 | . . . 1 1 . . . 1 . . . 1 . . . . 1 . . . . . . . . . . . . . Artifact 1 | . . . . . . . . . . . . . . . . . . . . . . . . . . . . . . 1 Weapon 54 | 2 . . 5 1 1 . . 2 . . 3 3 5 3 1 2 7 1 1 . 1 3 1 . 1 . . 4 1 6 Energy Gun 5 | . . . 1 . . . . . . . . 1 . 1 . . . . 1 . . . . . . . . 1 . . Energy Cannon 6 | . . . 1 . . . . 1 . . . 1 . . . . 2 . . . . . 1 . . . . . . . Ballistic Gun 7 | 2 . . 3 . . . . . . . . . . . . . . . . . . 1 . . . . . . . 1 Ballistic Cannon 16 | . . . . 1 1 . . . . . 1 1 1 2 1 2 1 1 . . 1 . . . . . . . . 3 Launcher 10 | . . . . . . . . . . . 2 . 1 . . . 2 . . . . . . . 1 . . 2 1 1 Special Weapon 1 | . . . . . . . . . . . . . . . . . 1 . . . . . . . . . . . . . Impact Weapon 4 | . . . . . . . . 1 . . . . . . . . 1 . . . . 1 . . . . . . . 1 Slashing Weapon 3 | . . . . . . . . . . . . . 2 . . . . . . . . . . . . . . 1 . . Piercing Weapon . | . . . . . . . . . . . . . . . . . . . . . . . . . . . . . . . Special Melee Weapon 2 | . . . . . . . . . . . . . 1 . . . . . . . . 1 . . . . . . . . Unidentified Prototypes 23 | . . . 2 . . . . 1 . . . . . 1 . . . . . 3 . 1 . . 4 . 1 2 1 7 Corrupted Parts 3 | . . . . . . . . . . . . . . . . . . . . . . . . . . . . . . 3 System Corruption 6 | . . . . . . . . . . . . . . . . . . . . . . . . . . . . . . 6 Parts Lost 99 | . . . 1 . . 1 . 2 1 . 5 3 11 6 1 7 15 1 5 . 4 4 . . . 6 2 1 1 22 Power 6 | . . . . . . 1 . . . . . . . 1 . 1 1 . 1 . . . . . . . . . . 1 Propulsion 37 | . . . . . . . . . . . 1 . 5 3 1 2 5 1 2 . 1 . . . . 1 2 . . 13 Utility 26 | . . . 1 . . . . 1 1 . 1 1 1 1 . . 3 . 1 . 2 3 . . . 2 . 1 1 6 Weapon 30 | . . . . . . . . 1 . . 3 2 5 1 . 4 6 . 1 . 1 1 . . . 3 . . . 2 Highest Loss Streak 15 | . . . 1 . . 1 . 2 1 . 4 2 9 6 1 7 15 1 3 . 3 2 . . . 3 2 1 1 12 To Critical Strikes 3 | . . . . . . . . . . . . 1 . 2 . . . . . . . . . . . . . . . . Average Backups 15 | 2 6 10 19 24 24 22 21 21 22 22 20 23 23 17 18 20 17 9 6 5 5 4 4 4 4 4 3 3 6 10 Power . | . 1 2 2 1 1 . . . 1 1 1 1 1 . 1 . . . . . . . . . . 1 1 . 1 1 Propulsion 3 | . 2 3 5 7 6 6 5 7 8 8 7 6 5 1 1 3 3 . . . . . 1 1 . . . . . 1 Utility 6 | . 2 4 5 7 8 9 8 8 7 7 6 10 11 10 9 10 7 6 3 3 3 2 2 2 2 3 2 2 3 3 Weapon 3 | . 1 1 6 7 7 6 6 4 5 5 4 4 4 4 4 4 4 2 1 1 1 . . . . . . . 1 4 Tool/Special . | . . . . . . . . . . . . . . . . . . . . . . . . . . . . . . . Unused Backups 20 | . . . . 4 3 . 4 . . . . 1 . . . . . 2 2 . . . . . 1 . . . . 3 Power 1 | . . . . 1 . . . . . . . . . . . . . . . . . . . . . . . . . . Propulsion 7 | . . . . . 1 . 4 . . . . . . . . . . . . . . . . . 1 . . . . 1 Utility 7 | . . . . . . . . . . . . 1 . . . . . 2 2 . . . . . . . . . . 2 Weapon 5 | . . . . 3 2 . . . . . . . . . . . . . . . . . . . . . . . . . Tool/Special . | . . . . . . . . . . . . . . . . . . . . . . . . . . . . . . . Average Slot Usage (%) 86 | . 98 100 99 100 100 100 99 98 99 100 78 85 96 81 96 95 92 81 82 78 71 76 73 71 88 74 50 46 63 50 Engine 5 | . 14 14 11 11 11 11 9 7 7 7 7 4 6 3 . . . 5 4 . . . . . . . . . . . Treads 11 | . 22 14 11 11 11 11 8 . . . 6 25 25 23 23 25 22 15 . . . . . . . . . . . . Wheel 3 | . 3 14 11 11 11 11 9 14 15 15 7 . . . . . . . . . . . . . . . . . . . Flight 3 | . . . . . . . . . . . . . . . . . . . 4 5 17 18 21 21 21 20 12 8 19 21 Device 10 | . 14 14 11 11 11 11 18 23 22 23 15 12 12 5 . . 4 4 11 16 13 11 6 6 14 7 5 10 8 3 Storage 7 | . 14 14 11 11 11 11 9 7 7 7 7 6 6 6 6 6 5 11 10 3 . 2 5 5 5 5 4 3 5 3 Processor 16 | . . . . . . . 8 7 7 7 7 18 20 21 33 33 28 29 23 24 24 21 21 22 21 21 19 19 17 14 Protection 3 | . . . 10 11 11 11 9 6 7 7 7 1 . 5 . . 4 . . . . . . . . . . . . . Energy Cannon 1 | . . . 7 6 . . . 3 7 7 . 2 4 . . . . . . . . . . . . . . . . . Ballistic Gun 4 | . 27 28 22 22 16 11 9 3 . . . . . . . . . . . . . 4 4 . . . . . . 1 Ballistic Cannon 6 | . . . . 4 16 22 18 15 15 15 7 8 2 3 19 17 14 . 5 . 1 3 . . . . . . . 1 Launcher 1 | . . . . . . . . . . . . . 1 3 . . . 4 4 . . 1 . . 4 4 . . 6 . Impact Weapon 2 | . . . . . . . . 6 7 7 7 . . . . . . 5 5 5 5 5 5 5 5 5 3 . . . Special Melee Weapon 1 | . . . . . . . . . . . . . 3 . . . . . 5 5 1 1 5 5 5 1 . . . . Peak Build Rating 139 | 7 8 8 22 27 30 30 36 46 45 44 66 84 74 63 66 66 80 64 70 73 70 102 109 100 121 121 99 98 139 126 Average Rating 60 | 5 7 8 16 24 28 29 35 44 44 44 55 73 65 56 65 61 71 59 62 59 65 85 95 91 118 103 86 71 114 81 On Entrance 55 | . 7 8 8 22 27 30 30 36 45 44 44 66 59 51 62 66 53 50 64 64 70 69 94 97 100 121 79 47 86 119 Avg Prop Armor Cover (%) 7 | . 11 11 8 8 8 8 8 . . . 7 6 . . . . . . 2 . . . . . . . . . . 6 Naked Turns . | . . . . . . . . . . . . . . . . . . . . . . . . . . . . . . . Heaviest Build 166 | 15 90 90 100 106 109 109 110 124 124 123 164 166 118 116 122 122 138 119 124 38 29 41 56 26 46 37 52 50 82 67 Greatest Support 120 | 40 40 10 20 10 10 10 10 26 26 26 20 100 120 108 99 99 101 70 30 30 28 40 40 40 46 43 27 31 57 57 Greatest Overweight (x) 41 | . 8 8 9 10 10 10 10 11 4 4 10 1 1 1 2 1 1 2 41 4 1 1 1 . 1 . 2 3 2 6 Average Overweight (x) 2 | . 2 8 8 9 10 10 10 4 4 4 9 1 . . 1 1 1 1 11 . . . . . . . . . . . Largest Inventory Capacity 25 | 8 25 25 25 25 25 25 25 25 25 25 25 25 25 25 25 25 25 25 25 5 5 5 5 5 5 5 5 5 15 15 Average Capacity 21 | 6 12 25 25 25 25 25 25 25 25 25 25 25 25 25 25 25 25 25 23 5 5 5 5 5 5 5 5 5 9 14 Most Carried 25 | 4 10 10 25 25 25 25 25 25 25 24 24 25 25 19 21 21 20 14 9 5 5 5 5 5 5 5 5 5 14 15 Average Carried 15 | 2 6 10 19 24 24 24 23 23 24 24 21 23 23 17 18 20 17 9 6 5 5 4 5 5 4 5 3 3 6 12 Final Capacity 25 | 8 25 25 25 25 25 25 25 25 25 25 25 25 25 25 25 25 25 25 5 5 5 5 5 5 5 5 5 5 15 5 Final Carried 25 | 4 10 10 25 25 25 24 25 25 24 24 20 24 19 16 21 18 14 9 5 5 5 5 5 5 5 5 5 5 13 5 Class Distribution -------------------- 28% | Mutant 21% | Skirmisher 16% | Tank 9% | Scavenger-Mutant 4% | Scavenger-Gunner 4% | Sprinter 3% | Commander-Assassin Dominant Class ---------------- Mutant | -10/Materials Mutant | -10/Mines Tank | -9/Materials Tank | -9/Mines Tank | -9/Exiles Skirmisher | -8/Mines Skirmisher | -8/Materials Tank | -7/Factory Tank | -7/Lower Caves Tank | -7/Data Miner Skirmisher | -6/Proximity Caves Skirmisher | -6/Factory Commander-Assassin | -6/Extension Commander-Skirmisher | -6/Cetus Commander-Gunner | -6/Archives Commander-Gunner | -6/Hub_04(d) Scavenger-Gunner | -5/Factory Scavenger-Mutant | -5/Upper Caves Mutant | -5/Upper Caves Mutant | -5/Zhirov Sprinter | -4/Proximity Caves Derelict-Mutant | -4/Factory Sprinter | -4/Upper Caves Sprinter | -4/Upper Caves Mutant | -4/Warlord Sprinter | -3/Proximity Caves Mutant | -3/Research Mutant | -3/Testing Mutant | -2/Research Mutant | -2/Quarantine Resources | -11 -10 -10 -9 -9 -9 -8 -8 -7 -7 -7 -6 -6 -6 -6 -6 -6 -5 -5 -5 -5 -4 -4 -4 -4 -4 -3 -3 -3 -2 -2 ----------- Run | Yrd Mat Min Mat Min Exi Min Mat Fac Low Dat Pro Fac Ext Cet Arc Hub Fac Upp Upp Zhi Pro Fac Upp Upp War Pro Res Tes Res Qua Matter Collected 7010 | 300 114 . 824 213 . 175 176 369 160 . 230 333 342 156 109 396 434 692 336 . 106 48 58 134 . 65 . . 900 340 Remotely . | . . . . . . . . . . . . . . . . . . . . . . . . . . . . . . . Salvage Created 7856 | 77 182 . 1115 273 . 158 151 308 139 . 758 1269 741 53 . 425 811 695 83 . . 126 . . . 110 . . 193 189 Parts 410 | 10 13 . 72 16 . 8 13 14 5 . 29 63 37 2 . 24 33 25 8 . . 6 . . . 7 . . 11 14 Haulers Intercepted 2 | . 1 . 1 . . . . . . . . . . . . . . . . . . . . . . . . . . . Recyclers Shooed 3 | 1 . . 1 . . . . . . . . . . . . . 1 . . . . . . . . . . . . . Parts Field Recycled . | . . . . . . . . . . . . . . . . . . . . . . . . . . . . . . . Retrieved Matter . | . . . . . . . . . . . . . . . . . . . . . . . . . . . . . . . Parts Self-Destructed 63 | . . . . . . . . . 9 . 19 . . . . . . 9 20 . . . . . . 6 . . . . Prevented 19 | . . . . . . . . . . . 6 . . . . . . 11 1 . . . . . . 1 . . . . Parts Restored . | . . . . . . . . . . . . . . . . . . . . . . . . . . . . . . . Kills | -11 -10 -10 -9 -9 -9 -8 -8 -7 -7 -7 -6 -6 -6 -6 -6 -6 -5 -5 -5 -5 -4 -4 -4 -4 -4 -3 -3 -3 -2 -2 ------- Run | Yrd Mat Min Mat Min Exi Min Mat Fac Low Dat Pro Fac Ext Cet Arc Hub Fac Upp Upp Zhi Pro Fac Upp Upp War Pro Res Tes Res Qua Combat Hostiles Destroyed 189 | . 5 . 23 8 . 6 4 8 3 . 20 33 14 1 . 7 16 14 3 . . 6 . . . 4 . . 7 7 Melee 11 | . . . . . . . . 1 . . . . 3 . . . 2 . . . . 4 . . . 1 . . . . Guns 33 | . 5 . 11 3 . 3 . 2 . . . 4 2 1 . . . . . . . 1 . . . . . . . 1 Cannons 94 | . . . 11 5 . 3 4 5 3 . 16 28 1 . . 7 11 . . . . . . . . . . . . . AOE 44 | . . . 1 . . . . . . . 4 1 6 . . . 2 11 3 . . 1 . . . 2 . . 7 6 Classes Destroyed 19 | 2 4 . 3 2 . . 1 . 1 . 1 2 1 . . 1 . 1 . . . . . . . . . . . . Worker 11 | . . . 2 1 . . . . . . . 4 . . . 3 . . . . . . . . . . . . . 1 Builder 6 | . . . 1 . . . . . . . . . 2 . . 1 1 . . . . 1 . . . . . . . . Tunneler 3 | 2 . . . . . . . . . . . . . . . . 1 . . . . . . . . . . . . . Hauler 2 | . 1 . 1 . . . . . . . . . . . . . . . . . . . . . . . . . . . Recycler 4 | 1 . . 2 . . . . . . . . . . . . . 1 . . . . . . . . . . . . . Operator 5 | . . . . . . . . . . . . 3 1 . . . . . . . . . . . . . . . 1 . Watcher 7 | . 1 . 3 . . . 1 2 . . . . . . . . . . . . . . . . . . . . . . Swarmer 50 | . 3 . 9 . . 3 . . . . 4 8 3 . . . . 6 3 . . 4 . . . 3 . . 4 . Grunt 77 | . 2 . 8 5 . 2 . 7 2 . 12 13 4 . . 4 12 3 . . . . . . . . . . 2 1 Brawler 4 | . . . . . . . . . 1 . . . 1 . . . 1 1 . . . . . . . . . . . . Duelist 5 | . . . . 1 . 1 . . . . 2 . . . . . . 1 . . . . . . . . . . . . Sentry 18 | . . . 6 . . . 3 1 . . 1 3 2 . . . . 1 . . . . . . . . . . 1 . Demolisher 2 | . . . . 2 . . . . . . . . . . . . . . . . . . . . . . . . . . Specialist 1 | . . . . . . . . . . . . . 1 . . . . . . . . . . . . . . . . . Hunter 8 | . . . . . . . 1 . . . . 3 1 . . 1 1 1 . . . . . . . . . . . . Programmer 18 | . . . . . . . . . . . . 6 1 . . . 2 . . . . 2 . . . 1 . . . 6 Heavy 2 | . . . . . . . . . . . . . . . . 2 . . . . . . . . . . . . . . Behemoth 2 | . . . . . . . . . . . 1 . 1 . . . . . . . . . . . . . . . . . Cetus Guard 1 | . . . . . . . . . . . . . . 1 . . . . . . . . . . . . . . . . Master Thief 1 | . . . . . . . . . . . . . . . . . . 1 . . . . . . . . . . . . Guerrilla 1 | . . . . . . . . . . . . . . . . 1 . . . . . . . . . . . . . . Best Kill Streak 7 | 2 2 . 6 3 . 3 3 4 3 . 4 6 5 1 . 4 5 7 3 . . 4 . . . 3 . . 4 6 Combat Bots Only 7 | . 2 . 4 2 . 3 1 4 3 . 4 6 5 1 . 3 4 7 3 . . 4 . . . 3 . . 4 5 Max Kills in Single Turn 4 | 1 1 . 3 1 . 1 1 1 1 . 1 2 2 1 . 3 2 3 3 . . 2 . . . 2 . . 4 2 Gunslinging . | . . . . . . . . . . . . . . . . . . . . . . . . . . . . . . . Exploded 4 | . . . 1 . . . . . . . 1 1 2 . . . 2 3 3 . . 1 . . . 2 . . 4 2 Melee 1 | . . . . . . . . 1 . . . . 1 . . . 1 . . . . 1 . . . 1 . . . . Uniques/NPCs Destroyed . | . . . . . . . . . . . . . . . . . . . . . . . . . . . . . . . Combat | -11 -10 -10 -9 -9 -9 -8 -8 -7 -7 -7 -6 -6 -6 -6 -6 -6 -5 -5 -5 -5 -4 -4 -4 -4 -4 -3 -3 -3 -2 -2 -------- Run | Yrd Mat Min Mat Min Exi Min Mat Fac Low Dat Pro Fac Ext Cet Arc Hub Fac Upp Upp Zhi Pro Fac Upp Upp War Pro Res Tes Res Qua Hostile Shots Fired 1548 | . 34 . 55 16 . 20 18 65 6 . 89 158 230 64 3 49 183 28 24 . 59 74 . 4 15 30 60 60 12 192 Missed 584 | . 9 . 14 2 . 5 8 27 1 . 29 57 77 21 2 14 55 9 7 . 36 41 . 1 5 10 17 51 8 78 Hits 964 | . 25 . 41 14 . 15 10 38 5 . 60 101 153 43 1 35 128 19 17 . 23 33 . 3 10 20 43 9 4 114 Melee 11 | . . . . . . . . . . . . . . . . . . 4 6 . . . . 1 . . . . . . Projectile 953 | . 25 . 41 14 . 15 10 38 5 . 60 101 153 43 1 35 128 15 11 . 23 33 . 2 10 20 43 9 4 114 AOE 2 | . . . . 1 . . . . . . . . . . . . . . . . . 1 . . . . . . . . Critical Strikes 34 | . . . 1 . . . 1 . . . 1 4 2 5 . . 7 1 . . . 1 . . . 2 2 1 . 6 Part Disruptions 2 | . . . . . . . . . . . . 1 1 . . . . . . . . . . . . . . . . . Damage Taken 17917 | . 233 . 530 231 . 173 150 465 56 . 857 1561 1973 1194 51 1002 2738 362 201 . 256 600 . 21 245 462 712 162 364 3318 Core 3455 | . 29 . 100 12 . . 34 32 . . 38 209 226 142 . 112 374 92 56 . 83 120 . . 38 93 233 68 121 1243 Absorbed by Shields 853 | . . . . . . . . 179 21 . 106 . 179 . . . . . 55 . 99 88 . . . . 126 . . . Redirected to Shielding 87 | . . . . . . . . . . . . . 29 58 . . . . . . . . . . . . . . . . Regen/Repaired (Parts) 73 | . . . . . . . . . . . . . . . . . . . . . . . . . 56 . . . 17 . Core Remaining (%) 72 | 100 . 88 . . . 72 93 . . . 90 . . . . 18 . . . . 39 . . . . 78 . 76 . . Volleys Fired 369 | 5 17 . 46 13 . 10 14 23 4 . 16 40 37 13 5 26 38 12 10 . . 4 . . . 5 . . 9 22 Largest 4 | 2 2 . 3 3 . 3 3 3 3 . 3 2 3 2 3 4 4 1 2 . . 3 . . . 1 . . 2 2 Hottest 261 | 40 40 . 118 118 . 105 105 136 136 . 136 144 188 110 144 224 261 46 93 . . 96 . . . 260 . . 116 91 Shots Fired 922 | 10 34 . 135 39 . 30 42 69 12 . 75 117 78 15 15 53 104 14 17 . . 12 . . . 5 . . 17 29 Gun 284 | 10 34 . 106 26 . 10 14 19 . . . 12 28 10 . 3 . . . . . 4 . . . . . . . 8 Cannon 557 | . . . 29 13 . 20 28 50 12 . 67 105 39 . 15 50 98 . 15 . . 4 . . . . . . . 12 Launcher 81 | . . . . . . . . . . . 8 . 11 5 . . 6 14 2 . . 4 . . . 5 . . 17 9 Special . | . . . . . . . . . . . . . . . . . . . . . . . . . . . . . . . Kinetic 654 | 10 34 . 92 32 . 30 42 65 8 . 58 86 9 . 15 50 80 . 15 . . 8 . . . . . . . 20 Thermal 112 | . . . 29 7 . . . . . . . 12 28 10 . 3 18 . . . . . . . . 5 . . . . Explosive 56 | . . . . . . . . . . . 7 . 9 5 . . 5 . . . . 4 . . . . . . 17 9 Electromagnetic 100 | . . . 14 . . . . 4 4 . 10 19 32 . . . 1 14 2 . . . . . . . . . . . Robot Hit Streak 18 | 4 12 . 9 8 . 4 6 9 11 . 8 18 13 11 2 5 10 2 2 . . 3 . . . 1 . . 11 12 Robot Miss Streak 9 | 1 4 . 5 2 . 2 3 5 1 . 2 3 4 1 9 3 6 3 2 . . 3 . . . 1 . . . 1 Penetration Max 1 | . . . . . . . . . . . . . . . . 1 1 . . . . . . . . . . . . 1 Secondary Targets . | . . . . . . . . . . . . . . . . . . . . . . . . . . . . . . . Autonomous 102 | . . . . . . . . . . . 38 64 . . . . . . . . . . . . . . . . . . Shots Hit Robots 598 | 7 19 . 68 22 . 12 23 43 8 . 51 86 96 6 4 27 61 15 5 . . 13 . . . 4 1 . 11 16 Core Hits 342 | 4 9 . 40 12 . 6 6 17 4 . 25 35 53 17 . 15 37 17 3 . . 8 . . . 4 . . 17 13 Critical Kills 14 | . . . . . . 1 . 1 . . . . . . . 7 3 . . . . 2 . . . . . . . . Critical Parts Destroyed 17 | . . . 1 . . . . . . . . . . . . 6 4 . . . . 2 . . . 1 . . . 3 Critical Strikes 60 | . . . 1 . . 3 1 2 1 . 3 13 . . 1 14 12 . 1 . . 4 . . . 1 . . . 3 Burn 1 | . . . . . . . . . . . . 1 . . . . . . . . . . . . . . . . . . Meltdown 1 | . . . . . . . . . . . . . . . . . 1 . . . . . . . . . . . . . Destroy 26 | . . . 1 . . 1 . . . . . . . . 1 14 6 . . . . . . . . . . . . 3 Blast 24 | . . . . . . 2 1 1 1 . 3 11 . . . . 4 . 1 . . . . . . . . . . . Corrupt 1 | . . . . . . . . . . . . 1 . . . . . . . . . . . . . . . . . . Smash 6 | . . . . . . . . 1 . . . . . . . . . . . . . 4 . . . 1 . . . . Sever 1 | . . . . . . . . . . . . . . . . . 1 . . . . . . . . . . . . . Melee Attacks 126 | . . . . . . . . 5 . . . . 47 . . . 14 11 1 . 7 25 . 2 3 5 3 3 . . Impact 58 | . . . . . . . . 5 . . . . . . . . 3 4 1 . 7 25 . 2 3 5 3 . . . Slashing 28 | . . . . . . . . . . . . . 14 . . . 11 . . . . . . . . . . 3 . . Piercing . | . . . . . . . . . . . . . . . . . . . . . . . . . . . . . . . Sneak Attacks 44 | . . . . . . . . . . . . . 37 . . . . 7 . . . . . . . . . . . . Combat Hostiles 1 | . . . . . . . . . . . . . 1 . . . . . . . . . . . . . . . . . Follow-up Attacks . | . . . . . . . . . . . . . . . . . . . . . . . . . . . . . . . Damage Inflicted 25057 | 86 240 . 1420 474 . 277 500 1107 202 . 2990 5472 2832 464 94 837 2432 857 186 . . 692 . . . 419 60 . 1324 2092 Guns 2769 | 86 240 . 779 213 . 85 100 231 . . . 252 360 227 . 47 . . . . . 60 . . . . . . . 89 Cannons 13644 | . . . 412 261 . 192 400 818 202 . 2532 5080 624 . 92 790 1963 . 93 . . 22 . . . . . . . 163 Explosions 6996 | . . . 229 . . . . . . . 458 112 1124 237 . . 288 767 93 . . 260 . . . 264 . . 1324 1840 Melee 1618 | . . . . . . . . 58 . . . . 724 . . . 181 90 . . . 350 . . . 155 60 . . . Ramming 30 | . . . . . . . . . . . . 28 . . 2 . . . . . . . . . . . . . . . Kinetic 13397 | 86 240 . 601 350 . 277 500 954 161 . 2427 4871 54 . 92 790 1567 . 93 . . 82 . . . . . . . 252 Thermal 2647 | . . . 641 124 . . . . . . . 364 469 227 . 47 396 115 . . . . . . . 264 . . . . Explosive 5019 | . . . . . . . . . . . 358 . 786 237 . . 214 . . . . 260 . . . . . . 1324 1840 Electromagnetic 2346 | . . . 178 . . . . 95 41 . 205 209 799 . . . 74 652 93 . . . . . . . . . . . Impact 770 | . . . . . . . . 58 . . . . . . . . 57 90 . . . 350 . . . 155 60 . . . Slashing 848 | . . . . . . . . . . . . . 724 . . . 124 . . . . . . . . . . . . . Piercing . | . . . . . . . . . . . . . . . . . . . . . . . . . . . . . . . Highest Corruption 31 | . . . . . . . . . . . . 4 5 5 . . 4 5 5 5 5 . . . . 3 . . 3 31 Average Corruption 4 | . . . . . . . . . . . . 2 4 4 . . 3 4 5 5 5 . . . . 2 . . 3 16 Corruption Purged 5 | . . . . . . . . . . . . . . 5 . . . . . . . . . . . . . . . . Corruption Blocked . | . . . . . . . . . . . . . . . . . . . . . . . . . . . . . . . Effects 209 | . . . . . . . . . . . . 23 34 10 . . 3 31 79 3 6 . . . . 5 . . . 15 Message Errors 50 | . . . . . . . . . . . . 6 10 2 . . . 9 20 . 2 . . . . . . . . 1 Matter Fused 52 | . . . . . . . . . . . . 5 8 5 . . 2 9 16 1 1 . . . . 1 . . . 4 Heat Flow Errors 20 | . . . . . . . . . . . . . . . . . 1 4 11 . 1 . . . . . . . . 3 Energy Discharges 18 | . . . . . . . . . . . . 2 7 1 . . . 1 4 1 1 . . . . 1 . . . . Parts Rejected 5 | . . . . . . . . . . . . 2 1 . . . . . 1 . . . . . . . . . . 1 Parts Fused 3 | . . . . . . . . . . . . . . . . . . . 2 . . . . . . 1 . . . . Data Loss (minor) 27 | . . . . . . . . . . . . 3 3 1 . . . 1 14 . . . . . . 2 . . . 3 Data Loss (major) 12 | . . . . . . . . . . . . 3 1 . . . . 3 3 1 . . . . . . . . . 1 Misfires 10 | . . . . . . . . . . . . 1 1 . . . . 2 5 . . . . . . . . . . 1 Alerts 8 | . . . . . . . . . . . . 1 1 . . . . 2 3 . 1 . . . . . . . . . Misdirections 1 | . . . . . . . . . . . . . . . . . . . . . . . . . . . . . . 1 Weapon Failures 3 | . . . . . . . . . . . . . 2 1 . . . . . . . . . . . . . . . . Overload Shots . | . . . . . . . . . . . . . . . . . . . . . . . . . . . . . . . Overflow Damage 1960 | . . . 1 . . 6 6 2 . . 181 975 132 . . . 16 30 4 . . 159 . . . 122 . . 22 304 Projectiles 1167 | . . . 1 . . 6 6 2 . . 172 967 . . . . 13 . . . . . . . . . . . . . Explosions 415 | . . . . . . . . . . . 9 8 5 . . . . 19 4 . . 4 . . . 40 . . 22 304 Melee 378 | . . . . . . . . . . . . . 127 . . . 3 11 . . . 155 . . . 82 . . . . Knockbacks 69 | . . . . 2 . 2 . 9 . . 16 11 . . . 5 18 . . . . 1 . . . 1 . . . 4 Impact 2 | . . . . . . . . . . . . . . . . . . . . . . 1 . . . 1 . . . . Kinetic 65 | . . . . 2 . 2 . 9 . . 14 11 . . . 5 18 . . . . . . . . . . . . 4 Secondary 2 | . . . . . . . . . . . 2 . . . . . . . . . . . . . . . . . . . Self-Inflicted Damage 1149 | . . . 52 . . . . . . . 13 249 76 . . . 109 41 17 . . 24 . . . . . . 10 558 Shots 26 | . . . 1 . . . . . . . 2 3 5 . . . 4 2 1 . . 1 . . . . . . 1 6 Rammed 3 | . . . . . . . . . . . . 1 . . 2 . . . . . . . . . . . . . . . Targets Rammed 3 | . . . . . . . . . . . . 1 . . 2 . . . . . . . . . . . . . . . Kicked . | . . . . . . . . . . . . . . . . . . . . . . . . . . . . . . . Crushed . | . . . . . . . . . . . . . . . . . . . . . . . . . . . . . . . Highest Temperature 488 | . . . 194 74 . 1 16 8 198 . 120 . 288 146 256 270 404 251 226 . 134 . . . 8 488 . . . 128 Average Temperature 89 | . . . 59 23 . 1 10 4 104 . 38 . 83 75 137 88 131 112 105 . 88 . . . 8 226 . . . 64 Received Heat Transfer 3476 | . 54 . 180 90 . 54 45 228 30 . 298 285 427 153 . 63 1107 72 9 . 15 . . . 42 . 192 33 18 81 Effects 7 | . . . . . . . . . . . . . 3 . 3 . . . . . . . . . . 1 . . . . Energy Bleed 1 | . . . . . . . . . . . . . . . . . . . . . . . . . . 1 . . . . Interference 6 | . . . . . . . . . . . . . 3 . 3 . . . . . . . . . . . . . . . Siege Activations . | . . . . . . . . . . . . . . . . . . . . . . . . . . . . . . . Martial Activations . | . . . . . . . . . . . . . . . . . . . . . . . . . . . . . . . Shielding Activations . | . . . . . . . . . . . . . . . . . . . . . . . . . . . . . . . Robots Disrupted . | . . . . . . . . . . . . . . . . . . . . . . . . . . . . . . . Combat Hostiles . | . . . . . . . . . . . . . . . . . . . . . . . . . . . . . . . Robots Corrupted 6 | . . . . . . . . . . . . . 2 . . . . 3 . . . . . . . 1 . . . . Combat Hostiles 6 | . . . . . . . . . . . . . 2 . . . . 3 . . . . . . . 1 . . . . Parts Fried 9 | . . . 1 . . . . . . . 1 . 1 . . . . 4 1 . . . . . . 1 . . . . Impact Corruptions 11 | . . . . . . . . . . . 1 . . . . . 1 1 . . . 4 . . . 4 . . . . Robots Melted 1 | . . . . . . . . . . . . . . . . . 1 . . . . . . . . . . . . . Combat Hostiles 1 | . . . . . . . . . . . . . . . . . 1 . . . . . . . . . . . . . Parts Melted 7 | . . . . . . . . . . . . 2 4 . . . 1 . . . . . . . . . . . . . Heat Transferred 4148 | . . . 940 222 . . . . . . . 650 855 296 . 74 481 150 . . . . . . . 480 . . . . Parts Sabotaged . | . . . . . . . . . . . . . . . . . . . . . . . . . . . . . . . Parts Stolen 7 | . . . . . . . . . . . . . . . . . . 2 4 . . . . 1 . . . . . . Parts Stripped . | . . . . . . . . . . . . . . . . . . . . . . . . . . . . . . . Power Chain Reactions 6 | . . . 1 . . . . . . . . . 1 . . . 1 3 . . . . . . . . . . . . Alert | -11 -10 -10 -9 -9 -9 -8 -8 -7 -7 -7 -6 -6 -6 -6 -6 -6 -5 -5 -5 -5 -4 -4 -4 -4 -4 -3 -3 -3 -2 -2 ------- Run | Yrd Mat Min Mat Min Exi Min Mat Fac Low Dat Pro Fac Ext Cet Arc Hub Fac Upp Upp Zhi Pro Fac Upp Upp War Pro Res Tes Res Qua Maximum Alert Level 4 | . . . 1 . . . . 1 . . . 2 4 3 1 1 1 . . . . 2 . . . . 2 1 1 . Low Security (%) 57 | 100 100 100 79 100 . 100 100 35 . . . 42 7 . . 38 56 . . . . 76 . . . . . 60 50 100 Level 1 23 | . . . 20 . . . . 64 . . . 14 29 . 100 61 43 . . . . 17 . . . . 30 39 49 . Level 2 10 | . . . . . . . . . . . . 42 10 . . . . . . . . 6 . . . . 69 . . . Level 3 5 | . . . . . . . . . . . . . 23 100 . . . . . . . . . . . . . . . . Level 4 2 | . . . . . . . . . . . . . 28 . . . . . . . . . . . . . . . . . Level 5 . | . . . . . . . . . . . . . . . . . . . . . . . . . . . . . . . High Security . | . . . . . . . . . . . . . . . . . . . . . . . . . . . . . . . Max Security . | . . . . . . . . . . . . . . . . . . . . . . . . . . . . . . . Peak Influence 1529 | 5 85 . 277 147 . 74 78 334 . . . 475 1529 1007 384 367 368 . . . . 468 . . . . 503 262 308 154 Initial 837 | . . . . 97 . . . 24 . . . 71 196 837 329 105 146 . . . . 40 . . . . 313 262 57 111 Average 236 | 1 23 . 120 39 . 21 12 187 . . . 256 740 907 343 232 201 . . . . 89 . . . . 435 182 179 84 Influence Increases 10628 | 15 140 . 677 235 . 165 171 467 70 . 465 1070 2093 372 184 666 826 280 260 . 195 610 . . . 175 504 20 579 389 Destroy 0b10 Robot/C 4800 | . 100 . 460 160 . 120 80 160 60 . 400 660 880 160 80 220 320 260 200 . . 120 . . . 80 . . 140 140 Destroy 0b10 Robot/NC 225 | 15 10 . 45 5 . . 5 10 . . . 35 40 10 . 20 15 . . . . 5 . . . . . . 5 5 Destroy Leader 864 | . 14 . 148 40 . 20 42 34 10 . 50 160 106 . . 70 50 20 30 . . 20 . . . 20 . . 20 10 Allied During Kill 1206 | . . . . . . . . . . . . . 872 170 68 66 . . 30 . . . . . . . . . . . Successful Hack 168 | . . . 1 . . . 5 37 . . . 21 44 . . 17 . . . . . 38 . . . . . 5 . . Disable Machine 480 | . . . . 30 . . 30 15 . . . 105 30 . 30 30 75 . . . . . . . . . . . 30 105 Anti-Garrison Action 1000 | . . . . . . . . 200 . . . . . . . 200 200 . . . . 200 . . . . 200 . . . Destroy Structure 850 | . 1 . 8 . . 10 9 11 . . . 59 46 32 6 13 166 . . . . 62 . . . . 4 . 354 69 Advance Influence 300 | . . . . . . . . . . . . . . . . . . . . . . . . . . . 300 . . . Partial Spotted 60 | . . . . . . . . . . . . . . . . . . . . . . 30 . . . . . 15 . 15 Lose Combat Pursuer 675 | . 15 . 15 . . 15 . . . . 15 30 75 . . 30 . . . . 195 135 . . . 75 . . 30 45 Influence Decreases 10508 | 15 140 . 426 478 8 165 117 262 177 152 351 782 998 1046 704 670 777 482 304 102 130 215 211 98 151 155 57 385 483 467 Entered New Map 3195 | . . . . 154 8 . . 30 97 152 . 43 206 660 494 198 153 130 29 102 . 25 171 48 151 . 7 205 45 87 Time Decay 5650 | 15 140 . 416 324 . 155 117 212 70 . 301 559 502 206 100 262 474 342 205 . 110 152 40 50 . 110 30 170 428 160 Lost Part 953 | . . . 10 . . 10 . 20 10 . 50 30 110 60 10 70 150 10 50 . 20 38 . . . 45 20 10 10 220 Lost Ally 560 | . . . . . . . . . . . . . 180 120 100 140 . . 20 . . . . . . . . . . . Purge Threat 150 | . . . . . . . . . . . . 150 . . . . . . . . . . . . . . . . . . Squads Dispatched 39 | . . . 5 1 . . . 1 . . . 7 5 . . 5 7 . . . . 3 . . . . 1 1 . 3 Investigation 9 | . . . 2 1 . . . 1 . . . . 1 . . 1 1 . . . . 1 . . . . 1 . . . Extermination 9 | . . . . . . . . . . . . 5 . . . . 1 . . . . 1 . . . . . . . 2 Reinforcement 19 | . . . 3 . . . . . . . . 2 3 . . 3 5 . . . . 1 . . . . . 1 . 1 Assault 1 | . . . . . . . . . . . . . 1 . . . . . . . . . . . . . . . . . Garrison 1 | . . . . . . . . . . . . . . . . 1 . . . . . . . . . . . . . . Intercept . | . . . . . . . . . . . . . . . . . . . . . . . . . . . . . . . Searches Triggered . | . . . . . . . . . . . . . . . . . . . . . . . . . . . . . . . Data Miner Redirects 1 | . . . . . . . . . . . . . 1 . . . . . . . . . . . . . . . . . Construction Impeded 4 | . . . . . . . . . . . . . 2 . . . 1 . . . . 1 . . . . . . . . Haulers Reinforced 3 | . . . . . . . . . . . . 1 . . . . 2 . . . . . . . . . . . . . Active Scanning Responses . | . . . . . . . . . . . . . . . . . . . . . . . . . . . . . . . Cargo Convoy Interrupts 1 | . . . . . . . . . . . . 1 . . . . . . . . . . . . . . . . . . Stealth | -11 -10 -10 -9 -9 -9 -8 -8 -7 -7 -7 -6 -6 -6 -6 -6 -6 -5 -5 -5 -5 -4 -4 -4 -4 -4 -3 -3 -3 -2 -2 --------- Run | Yrd Mat Min Mat Min Exi Min Mat Fac Low Dat Pro Fac Ext Cet Arc Hub Fac Upp Upp Zhi Pro Fac Upp Upp War Pro Res Tes Res Qua Distress Signals 25 | . . . 3 . . . 1 . . . . 1 3 2 . 2 1 . . . . 1 . . . 1 . 1 6 3 Communications Jammed . | . . . . . . . . . . . . . . . . . . . . . . . . . . . . . . . Distress Signals . | . . . . . . . . . . . . . . . . . . . . . . . . . . . . . . . Times Spotted 383 | . 10 . 29 8 . 7 5 9 3 . 20 38 43 10 8 17 24 17 10 . 14 21 . 4 27 11 6 13 14 15 Peak Tracking Total 27 | . 3 . 5 2 . 3 3 4 3 . 4 4 9 5 2 4 7 7 4 . 7 11 . 2 27 5 6 9 5 7 Tactical Retreats 28 | . 1 . 1 . . 1 . . . . 1 2 4 . . 2 . . . . 5 3 . . . 4 . . 2 2 Traps | -11 -10 -10 -9 -9 -9 -8 -8 -7 -7 -7 -6 -6 -6 -6 -6 -6 -5 -5 -5 -5 -4 -4 -4 -4 -4 -3 -3 -3 -2 -2 ------- Run | Yrd Mat Min Mat Min Exi Min Mat Fac Low Dat Pro Fac Ext Cet Arc Hub Fac Upp Upp Zhi Pro Fac Upp Upp War Pro Res Tes Res Qua Traps Triggered 8 | . 1 . 2 1 . . 1 1 . . . 1 1 . . . . . . . . . . . . . . . . . Indirectly . | . . . . . . . . . . . . . . . . . . . . . . . . . . . . . . . Trap Hack Attempts 3 | . . . . . . . . . . . . . 3 . . . . . . . . . . . . . . . . . Triggered . | . . . . . . . . . . . . . . . . . . . . . . . . . . . . . . . Disarmed . | . . . . . . . . . . . . . . . . . . . . . . . . . . . . . . . Reprogrammed . | . . . . . . . . . . . . . . . . . . . . . . . . . . . . . . . Reused . | . . . . . . . . . . . . . . . . . . . . . . . . . . . . . . . Traps Extracted . | . . . . . . . . . . . . . . . . . . . . . . . . . . . . . . . Installed . | . . . . . . . . . . . . . . . . . . . . . . . . . . . . . . . Triggered . | . . . . . . . . . . . . . . . . . . . . . . . . . . . . . . . Machines | -11 -10 -10 -9 -9 -9 -8 -8 -7 -7 -7 -6 -6 -6 -6 -6 -6 -5 -5 -5 -5 -4 -4 -4 -4 -4 -3 -3 -3 -2 -2 ---------- Run | Yrd Mat Min Mat Min Exi Min Mat Fac Low Dat Pro Fac Ext Cet Arc Hub Fac Upp Upp Zhi Pro Fac Upp Upp War Pro Res Tes Res Qua Machines Disabled 36 | . . . . 2 . . 2 1 . . . 7 4 . 2 2 5 2 . . . . . . . . . . 2 7 Max in Single Turn 5 | . . . . 1 . . 1 1 . . . 5 2 . 1 1 2 1 . . . . . . . . . . 1 3 Garrison Access 6 | . . . . . . . . 1 . . . . . . . 1 1 . . . . 1 . . . . 1 . 1 . Energy Cycler 1 | . . . . . . . . . . . . . 1 . . . . . . . . . . . . . . . . . Machines Repaired . | . . . . . . . . . . . . . . . . . . . . . . . . . . . . . . . Machines Dismantled . | . . . . . . . . . . . . . . . . . . . . . . . . . . . . . . . Machines Sabotaged . | . . . . . . . . . . . . . . . . . . . . . . . . . . . . . . . Overloaded Fab Kills . | . . . . . . . . . . . . . . . . . . . . . . . . . . . . . . . Hacking | -11 -10 -10 -9 -9 -9 -8 -8 -7 -7 -7 -6 -6 -6 -6 -6 -6 -5 -5 -5 -5 -4 -4 -4 -4 -4 -3 -3 -3 -2 -2 --------- Run | Yrd Mat Min Mat Min Exi Min Mat Fac Low Dat Pro Fac Ext Cet Arc Hub Fac Upp Upp Zhi Pro Fac Upp Upp War Pro Res Tes Res Qua Machines Accessed 50 | . . . 2 2 1 . 1 5 . 3 . 8 3 1 . 4 3 . 1 4 . 4 . . 1 . 1 3 1 2 Terminals 27 | . . . 1 . . . 1 4 . . . 6 3 1 . 3 2 . . . . 2 . . . . . 2 . 2 Fabricators 1 | . . . . . . . . . . . . . . . . . . . . . . . . . . . . 1 . . Repair Stations . | . . . . . . . . . . . . . . . . . . . . . . . . . . . . . . . Recycling Units . | . . . . . . . . . . . . . . . . . . . . . . . . . . . . . . . Scanalyzers 3 | . . . 1 . . . . . . . . 1 . . . . . . . . . 1 . . . . . . . . Garrison Access 7 | . . . . . . . . 1 . . . 1 . . . 1 1 . . . . 1 . . . . 1 . 1 . Total Hacks 124 | . . . 12 2 1 . 1 8 . 24 . 13 5 2 . 7 6 . 1 17 . 12 . . 1 . 1 5 2 4 Successful 86 | . . . 8 2 1 . 1 6 . 24 . 6 3 . . 3 4 . 1 17 . 4 . . 1 . 1 1 . 3 Failed 37 | . . . 3 . . . . 2 . . . 7 2 2 . 4 2 . . . . 8 . . . . . 4 2 1 Catastrophic 12 | . . . . . . . . 2 . . . 4 . 1 . 2 . . . . . 2 . . . . . 1 . . Database Lockouts 1 | . . . 1 . . . . . . . . . . . . . . . . . . . . . . . . . . . Manual 55 | . . . 3 . 1 . 1 8 . . . 11 5 . . 7 6 . . . . 7 . . 1 . 1 2 2 . Terminals 50 | . . . 3 . . . 1 7 . . . 11 5 2 . 6 4 . . . . 5 . . . . . 2 . 4 Fabricators 3 | . . . . . . . . . . . . . . . . . . . . . . . . . . . . 3 . . Repair Stations . | . . . . . . . . . . . . . . . . . . . . . . . . . . . . . . . Recycling Units . | . . . . . . . . . . . . . . . . . . . . . . . . . . . . . . . Scanalyzers 15 | . . . 9 . . . . . . . . 1 . . . . . . . . . 5 . . . . . . . . Garrison Access 10 | . . . . . . . . 1 . . . 1 . . . 1 2 . . . . 2 . . . . 1 . 2 . Terminal Hacks 55 | . . . 1 2 1 . . 1 . 24 . 2 1 . . . 1 . 1 17 . . . . 1 . . . . 3 Record 14 | . . . . . . . . . . 6 . . . . . . . . . 5 . . . . . . . . . 3 Part Schematic 13 | . . . . . . . . . . 9 . . . . . . . . . 4 . . . . . . . . . . Robot Schematic 6 | . . . . . . . . . . 6 . . . . . . . . . . . . . . . . . . . . Robot Analysis 4 | . . . . . . . . . . . . . . . . . . . . 4 . . . . . . . . . . Prototype ID Bank 7 | . . . . . . . . . . 3 . . . . . . . . . 4 . . . . . . . . . . Open Door 4 | . . . . 2 . . . . . . . . . . . . . . 1 . . . . . 1 . . . . . Branch Access Points 5 | . . . 1 . . . . 1 . . . 1 1 . . . 1 . . . . . . . . . . . . . Unreport Threat 1 | . . . . . . . . . . . . 1 . . . . . . . . . . . . . . . . . . Proto ID Catalog 1 | . . . . . 1 . . . . . . . . . . . . . . . . . . . . . . . . . Fabricator Hacks 1 | . . . . . . . . . . . . . . . . . . . . . . . . . . . . 1 . . Build 1 | . . . . . . . . . . . . . . . . . . . . . . . . . . . . 1 . . Repair Station Hacks . | . . . . . . . . . . . . . . . . . . . . . . . . . . . . . . . Recycling Unit Hacks . | . . . . . . . . . . . . . . . . . . . . . . . . . . . . . . . Scanalyzer 8 | . . . 6 . . . . . . . . . . . . . . . . . . 2 . . . . . . . . Retrieve Study 8 | . . . 6 . . . . . . . . . . . . . . . . . . 2 . . . . . . . . Garrison Access Hacks . | . . . . . . . . . . . . . . . . . . . . . . . . . . . . . . . Unauthorized Hacks 22 | . . . 1 . . . 1 5 . . . 4 2 . . 3 3 . . . . 2 . . . . 1 . . . Terminals 17 | . . . 1 . . . 1 4 . . . 4 2 . . 2 2 . . . . 1 . . . . . . . . Botnet 17 | . . . 1 . . . 1 4 . . . 4 2 . . 2 2 . . . . 1 . . . . . . . . Fabricators . | . . . . . . . . . . . . . . . . . . . . . . . . . . . . . . . Repair Stations . | . . . . . . . . . . . . . . . . . . . . . . . . . . . . . . . Recycling Units . | . . . . . . . . . . . . . . . . . . . . . . . . . . . . . . . Scanalyzers . | . . . . . . . . . . . . . . . . . . . . . . . . . . . . . . . Garrison Access 5 | . . . . . . . . 1 . . . . . . . 1 1 . . . . 1 . . . . 1 . . . Jam 5 | . . . . . . . . 1 . . . . . . . 1 1 . . . . 1 . . . . 1 . . . Data Cores Recovered 2 | . . . . . . . . . . . . 2 . . . . . . . . . . . . . . . . . . Used . | . . . . . . . . . . . . . . . . . . . . . . . . . . . . . . . Hacking Detections 32 | . . . 2 . . . 1 2 . . . 8 3 1 . 3 2 . . . . 4 . . . . . 3 1 2 Full Trace Events 1 | . . . 1 . . . . . . . . . . . . . . . . . . . . . . . . . . . Feedback Events . | . . . . . . . . . . . . . . . . . . . . . . . . . . . . . . . Feedback Blocked . | . . . . . . . . . . . . . . . . . . . . . . . . . . . . . . . Robot Schematics Acquired 6 | . . . . . . . . . . 6 . . . . . . . . . . . . . . . . . . . . Robots Built . | . . . . . . . . . . . . . . . . . . . . . . . . . . . . . . . Authchips . | . . . . . . . . . . . . . . . . . . . . . . . . . . . . . . . Time . | . . . . . . . . . . . . . . . . . . . . . . . . . . . . . . . Total Robot Build Rating . | . . . . . . . . . . . . . . . . . . . . . . . . . . . . . . . Part Schematics Acquired 13 | . . . . . . . . . . 9 . . . . . . . . . 4 . . . . . . . . . . Parts Built 1 | . . . . . . . . . . . . . . . . . . . . . . . . . . . . 1 . . Authchips . | . . . . . . . . . . . . . . . . . . . . . . . . . . . . . . . Time 128 | . . . . . . . . . . . . . . . . . . . . . . . . . . . . 128 . . Total Part Build Rating 8 | . . . . . . . . . . . . . . . . . . . . . . . . . . . . 8 . . Part Studies Acquired 7 | . . . 5 . . . . . . . . . . . . . . . . . . 2 . . . . . . . . Parts Repaired . | . . . . . . . . . . . . . . . . . . . . . . . . . . . . . . . Time . | . . . . . . . . . . . . . . . . . . . . . . . . . . . . . . . Parts Recycled . | . . . . . . . . . . . . . . . . . . . . . . . . . . . . . . . Recycled Matter . | . . . . . . . . . . . . . . . . . . . . . . . . . . . . . . . Retrieved Matter . | . . . . . . . . . . . . . . . . . . . . . . . . . . . . . . . Retrieved Components . | . . . . . . . . . . . . . . . . . . . . . . . . . . . . . . . Parts Scanalyzed . | . . . . . . . . . . . . . . . . . . . . . . . . . . . . . . . Part Schematics Acquired . | . . . . . . . . . . . . . . . . . . . . . . . . . . . . . . . Parts Damaged . | . . . . . . . . . . . . . . . . . . . . . . . . . . . . . . . Bothacking | -11 -10 -10 -9 -9 -9 -8 -8 -7 -7 -7 -6 -6 -6 -6 -6 -6 -5 -5 -5 -5 -4 -4 -4 -4 -4 -3 -3 -3 -2 -2 ------------ Run | Yrd Mat Min Mat Min Exi Min Mat Fac Low Dat Pro Fac Ext Cet Arc Hub Fac Upp Upp Zhi Pro Fac Upp Upp War Pro Res Tes Res Qua Used RIF Installer . | . . . . . . . . . . . . . . . . . . . . . . . . . . . . . . . Robots Hacked . | . . . . . . . . . . . . . . . . . . . . . . . . . . . . . . . Non-combat . | . . . . . . . . . . . . . . . . . . . . . . . . . . . . . . . Combat . | . . . . . . . . . . . . . . . . . . . . . . . . . . . . . . . Robot Hacks Applied . | . . . . . . . . . . . . . . . . . . . . . . . . . . . . . . . Relay Couplers Released 7 | . . . . . . . . . . . . 4 . . . 2 . . . . . . . . . . . . 1 . Machine Destruction 3 | . . . . . . . . . . . . . . . . 2 . . . . . . . . . . . . 1 . Programmers 4 | . . . . . . . . . . . . 4 . . . . . . . . . . . . . . . . . . Fabnet Peak Effective % . | . . . . . . . . . . . . . . . . . . . . . . . . . . . . . . . Robots Rewired 22 | . . . . . . . . . . . . . 20 . . . . 2 . . . . . . . . . . . . Allies Hacked . | . . . . . . . . . . . . . . . . . . . . . . . . . . . . . . . Hacks Repelled . | . . . . . . . . . . . . . . . . . . . . . . . . . . . . . . . Allies | -11 -10 -10 -9 -9 -9 -8 -8 -7 -7 -7 -6 -6 -6 -6 -6 -6 -5 -5 -5 -5 -4 -4 -4 -4 -4 -3 -3 -3 -2 -2 -------- Run | Yrd Mat Min Mat Min Exi Min Mat Fac Low Dat Pro Fac Ext Cet Arc Hub Fac Upp Upp Zhi Pro Fac Upp Upp War Pro Res Tes Res Qua Total Allies 33 | . . . . 2 . . . . . . . . 29 . . . . 2 . . . . . . . . . . . . Largest Group 25 | . . . . 2 2 . . . . . . . 25 20 14 8 . 2 2 1 1 . . . . . . . . . Highest-Rated Group 730 | . . . . 41 41 . . . . . . . 730 597 382 218 . 78 78 49 49 . . . . . . . . . Highest-Rated Ally 159 | . . . . 31 31 . . . . . . . 159 39 39 39 . 49 49 49 49 . . . . . . . . . Total Orders . | . . . . . . . . . . . . . . . . . . . . . . . . . . . . . . . Ally Attacks 369 | . . . . . . . . . . . . . 210 62 35 24 . . 38 . . . . . . . . . . . Total Damage 6905 | . . . . . . . . . . . . . 4273 904 631 412 . . 685 . . . . . . . . . . . Kills 61 | . . . . . . . . . . . . . 35 9 5 4 . . 8 . . . . . . . . . . . Allies Corrupted . | . . . . . . . . . . . . . . . . . . . . . . . . . . . . . . . Allies Melted 2 | . . . . . . . . . . . . . . . . . . . . . . . . . 1 . . . 1 . Intel | -11 -10 -10 -9 -9 -9 -8 -8 -7 -7 -7 -6 -6 -6 -6 -6 -6 -5 -5 -5 -5 -4 -4 -4 -4 -4 -3 -3 -3 -2 -2 ------- Run | Yrd Mat Min Mat Min Exi Min Mat Fac Low Dat Pro Fac Ext Cet Arc Hub Fac Upp Upp Zhi Pro Fac Upp Upp War Pro Res Tes Res Qua Active Infowar (turns) 13547 | 58 491 98 591 . . . 558 478 150 105 1054 3046 1340 423 217 560 167 . 296 208 286 483 89 100 697 245 71 351 1051 334 Optics 5830 | . . . . . . . . . . . 80 3046 1337 423 217 560 167 . . . . . . . . . . . . . Sensors 4297 | . . . . . . . . . . . . 2254 1340 208 . . . . . . . . . 3 492 . . . . . Terrain 3804 | . . . . . . . 558 478 150 105 1054 724 . . . . 159 . 296 208 72 . . . . . . . . . Seismic 2599 | 58 491 98 591 . . . . . . . . . . . . . . . . . . . . . . . . 325 1036 . Decoding 3781 | . . . . . . . . . . . . . . . . . . . . 74 286 483 89 100 697 245 71 351 1051 334 Cloaking 1664 | . . . . . . . . . . . . . . . . . . . . . . . . . 211 89 32 219 1051 62 Robot Analysis Total 4 | . . . . . . . . . . . . . . . . . . . . 4 . . . . . . . . . . Derelict Logs Recovered 8 | . . . . . . . . . . . 2 . . . . . . 1 1 . 2 . 1 1 . . . . . . Drone Launches . | . . . . . . . . . . . . . . . . . . . . . . . . . . . . . . . Drone Recoveries . | . . . . . . . . . . . . . . . . . . . . . . . . . . . . . . . Decoded 0b10 Intel 32 | . . . . . . . . . . . . . . . . . . . . . . 10 . . . . 1 3 11 7 Traps 12 | . . . . . . . . . . . . . . . . . . . . . . 7 . . . . . 1 1 3 Emergency Access 16 | . . . . . . . . . . . . . . . . . . . . . . 2 . . . . . 1 10 3 Garrisons 2 | . . . . . . . . . . . . . . . . . . . . . . 1 . . . . . 1 . . Exits 2 | . . . . . . . . . . . . . . . . . . . . . . . . . . . 1 . . 1 Exploration | -11 -10 -10 -9 -9 -9 -8 -8 -7 -7 -7 -6 -6 -6 -6 -6 -6 -5 -5 -5 -5 -4 -4 -4 -4 -4 -3 -3 -3 -2 -2 ------------- Run | Yrd Mat Min Mat Min Exi Min Mat Fac Low Dat Pro Fac Ext Cet Arc Hub Fac Upp Upp Zhi Pro Fac Upp Upp War Pro Res Tes Res Qua Turns Passed 22200 | 150 491 98 1284 1166 527 592 558 478 150 105 1054 3046 1348 423 217 560 1214 1561 3237 234 286 483 89 100 697 245 71 351 1051 334 Spaces Moved 11912 | 78 240 50 493 511 238 255 231 274 98 76 420 1168 463 183 78 209 421 580 336 167 728 691 283 305 551 731 59 405 1033 557 Core 14 | 3 5 . . . . . . . . . . . . . . . . . 5 . . . . . . . . . . 1 Treads 3353 | 75 167 . 2 . . . . . . . 7 1168 463 183 78 209 421 580 . . . . . . . . . . . . Legs 275 | . . . . . . . . . . . . . . . . . . . 163 112 . . . . . . . . . . Wheels 2705 | . 68 50 491 511 238 255 231 274 98 76 413 . . . . . . . . . . . . . . . . . . . Hover 64 | . . . . . . . . . . . . . . . . . . . . . . . . . . . . . . 64 Flight 5501 | . . . . . . . . . . . . . . . . . . . 168 55 728 691 283 305 551 731 59 405 1033 492 Fastest Speed 18 | 50 160 200 205 205 220 220 220 140 140 140 180 245 160 162 230 220 230 246 120 99 20 29 29 29 21 24 30 34 22 18 Average Speed 164 | 155 173 200 211 210 220 220 220 140 140 140 237 245 214 190 233 229 242 260 951 118 35 52 29 29 72 27 92 47 95 37 Slowest Speed 2100 | 160 320 200 490 220 220 220 220 235 140 140 570 247 245 240 320 230 246 325 2100 335 103 106 106 29 103 30 184 259 185 350 Overloaded Moves 673 | . . . . . . . . . . . . . . . . . . . . . 570 . . . 35 68 . . . . Propulsion Burnouts . | . . . . . . . . . . . . . . . . . . . . . . . . . . . . . . . Robots Hopped 20 | . . . . . . . . . . . . . . . . . . . . . 3 5 . . 4 . 1 2 . 5 Potential Cave-ins 9 | . . . . . . . . . . . . . . . . . . . . . . 4 . . . . . . 5 . Cave-ins Triggered 1 | . . . . . . . . . . . . . . . . . . . . . . . . . . . . . 1 . Teleports 1 | . . . . . . . . . . . . . . . . . . . . . . . . . . . . . . 1 Exploration Rate (%) 46 | 5 39 16 47 83 62 71 28 9 17 68 55 27 76 59 81 28 16 70 52 60 77 20 51 54 69 89 2 32 26 58 Regions Visited 30 Branch Regions 21 Pre-discovered Areas 7 | . . . . . . . . . . 1 1 . . . . . . 1 . 3 1 . . . . . . . . . Known Exits Taken 20 | . . . 1 . . . . 1 . . . 1 1 1 1 1 1 1 1 1 1 1 1 1 1 1 1 1 1 . Unknown Exits Taken 10 | 1 1 1 . 1 1 1 1 . 1 1 1 . . . . . . . . . . . . . . . . . . . Scrap Searched 14 | . . . . 2 . 1 . . . . 1 . . . . . . 3 1 . 2 . 1 3 . . . . . . Spaces Dug 45 | . . . . . . . 2 3 . . . 2 1 . . . 9 . . . 7 16 . . 3 . 2 . . . Terrain Destroyed 581 | . . . 3 . . 13 8 11 1 . 28 59 48 38 6 17 101 9 11 . 7 36 . . 3 12 2 . 145 23 Melee 41 | . . . . . . . . 3 . . . . 1 . . . 9 . . . 7 16 . . 3 . 2 . . . Projectile 129 | . . . . . . 13 8 8 1 . 15 13 4 1 6 17 32 . 11 . . . . . . . . . . . AOE 411 | . . . 3 . . . . . . . 13 46 43 37 . . 60 9 . . . 20 . . . 12 . . 145 23 Terrain Rammed . | . . . . . . . . . . . . . . . . . . . . . . . . . . . . . . . Walls Destroyed . | . . . . . . . . . . . . . . . . . . . . . . . . . . . . . . . Machines Disabled . | . . . . . . . . . . . . . . . . . . . . . . . . . . . . . . . Actions | -11 -10 -10 -9 -9 -9 -8 -8 -7 -7 -7 -6 -6 -6 -6 -6 -6 -5 -5 -5 -5 -4 -4 -4 -4 -4 -3 -3 -3 -2 -2 --------- Run | Yrd Mat Min Mat Min Exi Min Mat Fac Low Dat Pro Fac Ext Cet Arc Hub Fac Upp Upp Zhi Pro Fac Upp Upp War Pro Res Tes Res Qua Total 13632 | 93 279 49 641 578 245 266 259 310 102 75 448 1290 705 239 99 245 512 611 362 202 739 744 286 310 832 756 71 554 1081 649 Wait 828 | . 11 . 64 43 . 1 . . . . 3 45 131 33 6 3 11 2 1 21 5 6 . . 264 16 . 133 11 18 Move 11845 | 77 239 49 492 510 237 254 230 273 97 75 419 1167 462 182 77 208 420 579 335 166 721 680 282 304 545 730 56 400 1031 548 Hop 16 | . . . . . . . . . . . . . . . . . . . . . 3 5 . . 1 . 1 2 . 4 Pick Up 90 | 4 6 . 18 4 2 . 8 2 . . 1 9 1 2 6 2 6 1 2 . . 2 . . 2 . 1 . 7 4 Fast Attach 106 | 7 3 . 5 1 . . . 2 . . 1 4 3 3 2 1 4 1 7 7 3 10 2 3 5 . . 8 8 16 Attach 84 | . . . 2 . 1 1 3 3 1 . 4 5 9 5 1 4 12 3 2 . . 2 . . 2 . 3 3 2 16 Detach 42 | . . . 2 . 1 . . 1 . . 2 1 1 . . . 2 . . 1 . 1 . . 3 . 4 3 8 12 Swap 37 | . 2 . 5 1 . . . 1 . . 1 10 8 1 . . 4 1 . 1 . 1 . . 1 . . . . . Drop 76 | . 1 . 7 6 4 . 4 . . . 1 8 1 . . 1 . 1 4 6 . 8 2 1 3 . 3 2 4 9 Fire 369 | 5 17 . 46 13 . 10 14 23 4 . 16 40 37 13 5 26 38 12 10 . . 4 . . . 5 . . 9 22 Melee 126 | . . . . . . . . 5 . . . . 47 . . . 14 11 1 . 7 25 . 2 3 5 3 3 . . Ram . | . . . . . . . . . . . . . . . . . . . . . . . . . . . . . . . Kick . | . . . . . . . . . . . . . . . . . . . . . . . . . . . . . . . Crush 3 | . . . . . . . . . . . . 1 . . 2 . . . . . . . . . . . . . . . Escape Stasis 3 | . . . . . . . . . . . . . 2 . . . . . . . . . . . . . . . 1 . Rewire . | . . . . . . . . . . . . . . . . . . . . . . . . . . . . . . . Trap 3 | . . . . . . . . . . . . . 3 . . . . . . . . . . . . . . . . . Miscellaneous 4 | . . . . . . . . . . . . . . . . . 1 . . . . . . . 3 . . . . . Route ------- -11/Scrapyard -10/Materials (discovered 2 exits: *Mat / [*Min]) -10/Mines -9/Materials (discovered 5 exits: *Mat x2 / *Min / *Sto x2) -9/Mines (discovered 3 exits: *Mat x2 / *Exi) -9/Exiles -8/Mines -8/Materials -7/Factory (discovered 3 exits: *Fac / *Low x2) -7/Lower Caves -7/Data Miner -6/Proximity Caves -6/Factory (discovered 5 exits: *Fac / Low x2 / *Ext x2) -6/Extension (discovered 2 exits: *Fac / *Cet) -6/Cetus (discovered 2 exits: *Fac / *Arc) -6/Archives (discovered 3 exits: *Fac / *Hub x2) -6/Hub_04(d) -5/Factory (discovered 4 exits: *Fac x2 / *Upp x2) -5/Upper Caves -5/Upper Caves (discovered 2 exits: *Fac / *Zhi) -5/Zhirov -4/Proximity Caves -4/Factory (discovered 3 exits: *Res x2 / *Upp) -4/Upper Caves -4/Upper Caves -4/Warlord -3/Proximity Caves -3/Research (discovered 3 exits: Res / Arm / *Tes) -3/Testing -2/Research -2/Quarantine (discovered 1 exit: Acc) History --------- Turn | Location | Event 52 | -11/Scrapyard | Discovered new exit (range 16) 151 | -11/Scrapyard | Entered Materials 317 | -10/Materials | Build established: Mutant 410 | -10/Materials | Discovered new exit (range 16) 479 | -10/Materials | Discovered new exit (range 16) 642 | -10/Materials | Entered Mines 666 | -10/Mines | Discovered new exit (range 12) 740 | -10/Mines | Entered Materials 740 | -9/Materials | Evolved 2 slots: Utility x1, Weapon x1 843 | -9/Materials | Identified exit to Mines 843 | -9/Materials | Identified exit to Storage 1045 | -9/Materials | Build established: Tank 1269 | -9/Materials | Discovered new exit (range 3) 1501 | -9/Materials | Central database locked down 1770 | -9/Materials | Discovered new exit (range 14) 2024 | -9/Materials | Entered Mines 2154 | -9/Mines | Found DCF Scrap (15 items) 2161 | -9/Mines | Assembled infested the area 2166 | -9/Mines | Assisted by a Guerilla fighting off Assembled 2194 | -9/Mines | Met a Derelict who couldn't figure out how to use a Trap Extractor 2543 | -9/Mines | Discovered new exit (range 8) 2677 | -9/Mines | Met a Derelict shopkeep closing up shop 3037 | -9/Mines | Discovered new exit (range 8) 3164 | -9/Mines | Deemed a non-threat by the Exiles lab entrance 3167 | -9/Mines | Discovered new exit (range 5) 3190 | -9/Mines | Entered Exiles 3190 | -9/Exiles | Accompanied by 2 allies 3220 | -9/Exiles | Led the pair of lost Derelicts to a safe place 3243 | -9/Exiles | Met 8R-AWN 3278 | -9/Exiles | Met EX-HEX 3366 | -9/Exiles | Met EX-BIN 3399 | -9/Exiles | Aligned with FarCom system 3402 | -9/Exiles | Given EX-Vault access code 3457 | -9/Exiles | Opened EX-Vault 3475 | -9/Exiles | Found AWS/Autocannon 3492 | -9/Exiles | Found PSU Rigger 3535 | -9/Exiles | Warned to stay clear of 0b10 Research branches 3603 | -9/Exiles | Met EX-DEC 3682 | -9/Exiles | Discovered new exit (range 14) 3717 | -9/Exiles | Stole two prototypes: PSU Rigger, AWS/Autocannon 3717 | -9/Exiles | Entered Mines 4009 | -8/Mines | Build established: Skirmisher 4293 | -8/Mines | Discovered new exit (range 8) 4309 | -8/Mines | Entered Materials 4309 | -8/Materials | Evolved 2 slots: Utility x2 4727 | -8/Materials | Discovered new exit (range 14) 4867 | -8/Materials | Entered Factory 4867 | -7/Factory | Evolved 2 slots: Utility x1, Weapon x1 4869 | -7/Factory | FarCom data flow suspended 4945 | -7/Factory | Identified exit to Lower Caves 4958 | -7/Factory | Discovered new exit (range 12) 5345 | -7/Factory | Entered Lower Caves 5346 | -7/Lower Caves | Encountered a Warlord checkpoint 5472 | -7/Lower Caves | A Derelict revealed a hidden shortcut to meet someone special 5495 | -7/Lower Caves | Entered Data Miner 5495 | -7/Data Miner | Discovered new exit (range 6) 5518 | -7/Data Miner | Build established: Tank 5522 | -7/Data Miner | Met Data Miner 5546 | -7/Data Miner | Learned location of Section 7 (-2) 5546 | -7/Data Miner | Acquired the access code to Warlord's prototype stash 5571 | -7/Data Miner | Received God Mode back door access code from Data Miner 5600 | -7/Data Miner | Entered Proximity Caves 5752 | -6/Proximity Caves | Lost 4 parts (1u3w) 5891 | -6/Proximity Caves | Spotted B-75 Beast 5931 | -6/Proximity Caves | Destroyed B-75 Beast 6019 | -6/Proximity Caves | Learned Factory terminal intel 6105 | -6/Proximity Caves | Build established: Skirmisher 6226 | -6/Proximity Caves | Learned location of Extension (-6) 6583 | -6/Proximity Caves | Attracted the attention of an 0b10 checkpoint 6632 | -6/Proximity Caves | Discovered new exit (range 9) 6654 | -6/Proximity Caves | Entered Factory 6654 | -6/Factory | Evolved 2 slots: Propulsion x2 6655 | -6/Factory | Loaded intel: 28 terminal locations 6840 | -6/Factory | Discovered new exit (range 14) 7379 | -6/Factory | Identified exit to Factory 8175 | -6/Factory | Cargo convoy interrupted 9148 | -6/Factory | Identified exit to Lower Caves 9148 | -6/Factory | Identified exit to Extension 9393 | -6/Factory | Spotted B-75 Beast 9700 | -6/Factory | Entered Extension 9842 | -6/Extension | Identified exit to Cetus 9872 | -6/Extension | Rescued A7 9918 | -6/Extension | Rescued a captive Derelict 9978 | -6/Extension | Rescued a captive Derelict 10029 | -6/Extension | Build established: Assassin 10117 | -6/Extension | Rescued a captive Derelict 10118 | -6/Extension | Rescued a captive Derelict 10146 | -6/Extension | Rescued a captive Derelict 10199 | -6/Extension | Spotted B-75 Beast 10243 | -6/Extension | Spotted B-75 Beast 10248 | -6/Extension | Destroyed B-75 Beast 10267 | -6/Extension | Allies destroyed B-75 Beast 10350 | -6/Extension | Rescued a captive Derelict 10355 | -6/Extension | Build established: Commander-Assassin 10361 | -6/Extension | Extracted ID and sensor layout for unrecognized location from A7's data core 10400 | -6/Extension | First assault squad dispatched 10406 | -6/Extension | Rescued a captive Derelict 10423 | -6/Extension | Incoming assault squad redirected 10533 | -6/Extension | Energy Cycler disabled 10533 | -6/Extension | Rescued a captive Derelict 10836 | -6/Extension | Discovered exit to Factory (range 10) 10874 | -6/Extension | Core integrity fell below 50% 10904 | -6/Extension | Lost 9 parts (3n1u5w) 11048 | -6/Extension | Entered Cetus 11048 | -6/Cetus | Accompanied by 20 allies 11068 | -6/Cetus | Spotted Cetus Guard 11069 | -6/Cetus | Spotted Cetus Guard 11070 | -6/Cetus | Spotted Cetus Guard 11070 | -6/Cetus | Spotted Cetus Guard 11078 | -6/Cetus | Allies destroyed Cetus Guard 11080 | -6/Cetus | Allies destroyed Cetus Guard 11082 | -6/Cetus | Allies destroyed Cetus Guard 11084 | -6/Cetus | Allies destroyed Cetus Guard 11201 | -6/Cetus | Discovered new exit (range 19) 11235 | -6/Cetus | Spotted Cetus Guard 11236 | -6/Cetus | Spotted Cetus Guard 11238 | -6/Cetus | Spotted Cetus Guard 11240 | -6/Cetus | Spotted Cetus Guard 11244 | -6/Cetus | Discovered exit to Factory (range 20) 11248 | -6/Cetus | Allies destroyed Cetus Guard 11263 | -6/Cetus | Allies destroyed Cetus Guard 11272 | -6/Cetus | Destroyed Cetus Guard 11273 | -6/Cetus | Allies destroyed Cetus Guard 11291 | -6/Cetus | Lost 6 parts (1p3n1u1w) 11293 | -6/Cetus | Met Revision 17 11300 | -6/Cetus | Lost 6 allies 11438 | -6/Cetus | Identified exit to Archives 11471 | -6/Cetus | Entered Archives 11471 | -6/Archives | Accompanied by 14 allies 11548 | -6/Archives | Lost 6 allies 11579 | -6/Archives | Discovered exit to Factory (range 20) 11588 | -6/Archives | Discovered new exit (range 15) 11619 | -6/Archives | Discovered new exit (range 15) 11680 | -6/Archives | Identified exit to Hub_04(d) 11688 | -6/Archives | Entered Hub_04(d) 11688 | -6/Hub_04(d) | Accompanied by 8 allies 11722 | -6/Hub_04(d) | Build established: Commander-Gunner 11744 | -6/Hub_04(d) | Allied Derelicts emerged from ambush trap array 11840 | -6/Hub_04(d) | Garrison activated, responded to threat 11991 | -6/Hub_04(d) | Lost 6 allies 12066 | -6/Hub_04(d) | Discovered exit to Factory (range 19) 12115 | -6/Hub_04(d) | Core integrity fell below 20% 12143 | -6/Hub_04(d) | Lost 7 parts (1p2n4w) 12248 | -6/Hub_04(d) | Entered Factory 12248 | -5/Factory | Evolved 2 slots: Utility x2 12700 | -5/Factory | Build established: Scavenger-Gunner 12929 | -5/Factory | Discovered new exit (range 15) 12975 | -5/Factory | Identified exit to Factory 12980 | -5/Factory | Discovered exit to Factory (range 4) 13174 | -5/Factory | Identified exit to Upper Caves 13393 | -5/Factory | Lost 15 parts (1p5n3u6w) 13462 | -5/Factory | Entered Upper Caves 13463 | -5/Upper Caves | PSU Rigger stolen by Master Thief 13464 | -5/Upper Caves | Encountered a Master Thief 13464 | -5/Upper Caves | Encountered a Master Thief 13469 | -5/Upper Caves | Encountered a Master Thief 13473 | -5/Upper Caves | Graphene Brace stolen by Master Thief 13652 | -5/Upper Caves | Build established: Scavenger-Mutant 14457 | -5/Upper Caves | Learned location of Warlord (-4) 14668 | -5/Upper Caves | Attracted the attention of an 0b10 outpost 14700 | -5/Upper Caves | Destroyed 7 combat bots 14971 | -5/Upper Caves | Build established: Mutant 14991 | -5/Upper Caves | Discovered new exit (range 8) 15017 | -5/Upper Caves | Identified exit to Upper Caves 15023 | -5/Upper Caves | Entered another Upper Caves area 15023 | -5/Upper Caves | Accompanied by 2 allies 15024 | -5/Upper Caves | Arm. Medium Treads stolen by Master Thief 15024 | -5/Upper Caves | Adv. Cooling System stolen by Master Thief 15025 | -5/Upper Caves | Encountered a Master Thief 15025 | -5/Upper Caves | Encountered a Master Thief 15028 | -5/Upper Caves | Encountered a Master Thief 15042 | -5/Upper Caves | Adv. Shield Generator stolen by Master Thief 15854 | -5/Upper Caves | Discovered exit to Factory (range 7) 17220 | -5/Upper Caves | Learned 4 Factory zone layouts 18141 | -5/Upper Caves | Core integrity fell below 50% 18167 | -5/Upper Caves | Lost 3 parts (1p1n1w) 18173 | -5/Upper Caves | Discovered new exit (range 14) 18198 | -5/Upper Caves | Build established: Scavenger-Mutant 18203 | -5/Upper Caves | Identified exit to Zhirov 18260 | -5/Upper Caves | Entered Zhirov 18260 | -5/Zhirov | Accompanied by 1 ally 18260 | -5/Zhirov | Discovered new exit (range 3) 18291 | -5/Zhirov | Met Zhirov 18314 | -5/Zhirov | Learned location of Quarantine (-2) 18314 | -5/Zhirov | Learned location of Testing (-3) 18314 | -5/Zhirov | Learned location of Command (-1) 18325 | -5/Zhirov | Zhirov requested help retrieving the SGEMP Prototype 18347 | -5/Zhirov | Found Alien Artifact 18347 | -5/Zhirov | Identified Integrated Dissipator 18347 | -5/Zhirov | Installed Integrated Dissipator, increased core heat dissipation (+20) 18471 | -5/Zhirov | Identified exit to Proximity Caves 18494 | -5/Zhirov | Entered Proximity Caves 18494 | -4/Proximity Caves | Accompanied by 1 ally 18550 | -4/Proximity Caves | Learned 4 Research zone layouts 18610 | -4/Proximity Caves | Lost 3 parts (2u1w) 18758 | -4/Proximity Caves | Discovered exit to Factory (range 13) 18780 | -4/Proximity Caves | Entered Factory 18780 | -4/Factory | Evolved 2 slots: Propulsion x2 18781 | -4/Factory | Identified exit to Research 19139 | -4/Factory | Discovered exit to Research (range 4) 19262 | -4/Factory | Discovered new exit (range 3) 19262 | -4/Factory | Identified exit to Upper Caves 19263 | -4/Factory | Entered Upper Caves 19333 | -4/Upper Caves | Discovered new exit (range 9) 19349 | -4/Upper Caves | Identified exit to Upper Caves 19352 | -4/Upper Caves | Entered another Upper Caves area 19353 | -4/Upper Caves | Adv. Force Field stolen by Master Thief 19354 | -4/Upper Caves | Encountered a Master Thief 19418 | -4/Upper Caves | Attracted the attention of an 0b10 checkpoint 19418 | -4/Upper Caves | Learned Research garrison access intel 19444 | -4/Upper Caves | Discovered new exit (range 9) 19446 | -4/Upper Caves | Identified exit to Warlord 19448 | -4/Upper Caves | Spotted B-86 Titan 19452 | -4/Upper Caves | Entered Warlord 19481 | -4/Warlord | Opened Warlord's prototype stash 19491 | -4/Warlord | Found Prototype Reactor 19496 | -4/Warlord | Found Prototype Device 19496 | -4/Warlord | Identified System Purifier 19501 | -4/Warlord | Found Prototype Device 19705 | -4/Warlord | Met Warlord 19730 | -4/Warlord | Warlord's base attacked by MAIN.C 19779 | -4/Warlord | Build established: Mutant 19938 | -4/Warlord | Identified Exp. Cloaking Device 20080 | -4/Warlord | Warlord forces counterattacked 20094 | -4/Warlord | Opened side exit 20137 | -4/Warlord | Spotted Executioner 20140 | -4/Warlord | Spotted Executioner 20142 | -4/Warlord | Spotted Striker 20147 | -4/Warlord | Discovered new exit (range 9) 20149 | -4/Warlord | Identified exit to Proximity Caves 20149 | -4/Warlord | Entered Proximity Caves 20150 | -3/Proximity Caves | Spotted B-86 Titan 20237 | -3/Proximity Caves | Spotter reported a threat 20238 | -3/Proximity Caves | Lost 3 parts (2u1w) 20244 | -3/Proximity Caves | Build established: Sprinter 20298 | -3/Proximity Caves | Attracted the attention of an 0b10 checkpoint 20350 | -3/Proximity Caves | Spotter reported a threat 20387 | -3/Proximity Caves | Discovered exit to Research (range 9) 20394 | -3/Proximity Caves | Entered Research 20394 | -3/Research | Evolved 2 slots: Power x1, Propulsion x1 20395 | -3/Research | Identified exit to Research 20395 | -3/Research | Identified exit to Armory 20395 | -3/Research | Identified Vortex Chain Reactor 20396 | -3/Research | Loaded intel: 4 garrison access locations 20406 | -3/Research | Lost 3 parts (1n2w) 20418 | -3/Research | Identified exit to Testing 20465 | -3/Research | Entered Testing 20687 | -3/Testing | Build established: Mutant 20710 | -3/Testing | Fabricated Impulse Thruster Array (x1) 20807 | -3/Testing | Discovered exit to Research (range 13) 20816 | -3/Testing | Entered Research 20816 | -2/Research | Warlord forces began assault on 0b10 20816 | -2/Research | Evolved 2 slots: Propulsion x1, Utility x1 20926 | -2/Research | Research machine network offline 20936 | -2/Research | Spotted B-90 Cyclops 21041 | -2/Research | Found Prototype Launcher 21041 | -2/Research | Identified Ragnarok Missile Launcher 21046 | -2/Research | Found Ragnarok Missile Launcher 21143 | -2/Research | Met up with Warlord 21321 | -2/Research | Borebot progress halted 21370 | -2/Research | Borebot progress halted 21529 | -2/Research | Borebot progress halted 21677 | -2/Research | Spotted Striker 21679 | -2/Research | Spotted Striker 21690 | -2/Research | Discovered new exit (range 7) 21696 | -2/Research | Identified exit to Quarantine 21816 | -2/Research | Warlord invited to help at Command 21816 | -2/Research | Given Cave Seal Controls access code 21852 | -2/Research | Crushed by falling debris 21867 | -2/Research | Entered Quarantine 21878 | -2/Quarantine | Found Alien Artifact 21878 | -2/Quarantine | Identified Hpw. Transdimensional Reconstructor 21878 | -2/Quarantine | Warped through subspace 21930 | -2/Quarantine | Found Alien Artifact 21930 | -2/Quarantine | Identified Phase Redirector 21953 | -2/Quarantine | System corruption reached 10% 21964 | -2/Quarantine | Lost 5 parts (2n3u) 21967 | -2/Quarantine | Identified exit to Access 21977 | -2/Quarantine | Lost 4 allies 22037 | -2/Quarantine | Found Prototype Reactor 22037 | -2/Quarantine | Identified Zero-point Reactor 22053 | -2/Quarantine | Found Alien Impact Weapon 22053 | -2/Quarantine | Identified Core Stripper 22071 | -2/Quarantine | Found Alien Artifact 22071 | -2/Quarantine | Identified Terrabomb 22071 | -2/Quarantine | Used Terrabomb 22081 | -2/Quarantine | Met incapacitated Sigix Warrior 22081 | -2/Quarantine | Lockdown squad dispatched 22111 | -2/Quarantine | Core integrity fell below 50% 22123 | -2/Quarantine | System corruption reached 30% 22158 | -2/Quarantine | Lost 12 parts (1p7n2u2w) 22163 | -2/Quarantine | Core integrity fell below 20% 22194 | -2/Quarantine | Spotted Lightning 22196 | -2/Quarantine | Spotted Lightning 22201 | -2/Quarantine | Destroyed by Lightning with EMDS Last Messages --------------- 22174_ Extracted 16 matter. 22175_ Acquired Enh. Hardcell Cannon. 22179_ System corrupted: Matter fused (-5). 22179_ The unstable cave ceiling collapses. 22179_ Dropped Enh. Hardcell Cannon. 22183_ The unstable cave ceiling collapses. 22191_ ALERT: Potential suspicious activity detected, Programmers report to Quarantine Zone 2C. 22192_ K-01 Serf cleans the Antiparticle Reservoir. 22194_ >> DECODED: Emergency access location. 22194_ Penetrated by EMDS Slug. 22196_ EMDS Slug penetrates Wall. 22199_ System corrupted: Matter fused (-7). 22199_ EMDS Slug penetrates Door. 22199_ U-05 Engineer builds a Wall. 22201_ Penetrated by EMDS Slug. 22201_ Cld. Q-thruster destroyed. 22201_ Penetrated by EMDS Slug. Map ----- +----------------------------------------------------+ | ??????" ???" ""?? "?# # ""?#! """"" | | ?????"" ???" """" T?# # ""?# """"" | | ?????"" ???" """"% "?# # ?# | | ?? % "?#################?######## | | "" """" """" #??????????????????????????? | | "" """" """" #??????????????????????????? | | "" """" """" #??????????????????????????? | | "" """" """" """ #??????????????????????????? | | T" #??????????????????????????? | | """ #??????????????????????????? | | #??????????????????????????? | | #??????????????????????????? | | ### #??????????????????????????? | | ### #??????????????????????????? | | T# ##?????????????????????????? | | ""# #?????????????????????????? | | #"# #?????????????????????????? | | # # #?????????????????????????? | | # # #?????????????????????????? | | #?# #?????????????????????????? | | #?#ih #?????????????????????????? | | # # ########??????????????????? | | # ; #??????????????????? | | # # #??????????????????? | | # ;u #??????????????????? | | # ; @ +??????????????????? | | """""""### """"""#####;### #??????????????????? | | " " ?? ^ ?? #??????????????????? | | """"" " " ? ??? #??????????????????? | | !""!" " """ """??? ?????????????????? | | """"" " "" """ ??? ????????????????? | | """"" " ""T """ ??? ??????????????? | | """" " """ ???? ?????????????? | | " ?"" [ ??? ????## ###????????????? | | " ? ? ??????????? #??????????????? | | " ???##????????????? #??????????????? | | #""""""" ??????????????????? #??????????????? | | ??????????????????? #??????????????? | | ???????????????????????????????????? | | ???????????????????????????????????? | | " ""???????????????????????????????????? | | ## " ???????????????????????????????????? | | " ???????????????????????????????????? | | "" % # ??????????????????????????????????? | | =% ??????????????????????????????????? | | * ?????????????????????????????????? | | ????????????????????????????????????? | | "" ?????????????????????????????????????? | | ! ??????????????????????????????????????? | | # ??????????????????????????????????????? | +----------------------------------------------------+ Best States ------------- Heat Dissipation 100 Energy Generation 55 Energy Capacity 1200 Matter Stores 300 Matter Capacity 300 Sight Range 20 Robot Scan Range 16 Terrain Scan Range 16 Terrain Scan Density 85 Cloak Strength 4 Power Amplification 20 EM Shielding 3 Corruption Block 12 Armor Coverage 225 Core Shielding 30 Evasion (%) 73 Targeting Accuracy 6 Melee Accuracy 8 Target Analysis 8 Core Analysis 6 Recoil Reduction 4 Item Schematics ----------------- Combat Drone Bay | -7/Data Miner | Free Lgt. Regenerative Plating | -7/Data Miner | Free Cld. Aerolev Unit | -7/Data Miner | Free Gravity Neutralizer | -7/Data Miner | Free Antimatter Cannon | -7/Data Miner | Free Gyrokinetic Inverter | -7/Data Miner | Free Lyr. Heavy Armor Plating | -7/Data Miner | Free Disruptor Cannon | -7/Data Miner | Free Adv. Plasma Cannon | -7/Data Miner | Free Assault Drone Bay | -5/Zhirov | Free Exp. Heat Sink | -5/Zhirov | Free Exp. Optical Array | -5/Zhirov | Free Imp. Arc Thrower | -5/Zhirov | Free Robot Schematics ------------------ Y-54 Guardian | -7/Data Miner | Free W-25 Informer | -7/Data Miner | Free L-41 Fighter | -7/Data Miner | Free H-55 Commando | -7/Data Miner | Free G-50 Soldier | -7/Data Miner | Free B-48 Gladiator | -7/Data Miner | Free Fabricated ------------ Impulse Thruster Array | x1 | -3/Testing | Preloaded Repaired ---------- Nothing Studied --------- Ion Engine | -9/Materials | Hacked Wheel | -9/Materials | Hacked Com. Wheel | -9/Materials | Hacked Lgt. Treads | -9/Materials | Hacked Spread Laser | -9/Materials | Hacked Impulse Thruster | -4/Factory | Hacked Coil Gun | -4/Factory | Hacked Alien Tech Used ----------------- Integrated Dissipator High-powered Transdimensional Reconstructor Phase Redirector Core Stripper Terrabomb Achievements -------------- All-out Warlord False Reunion Welcome To The Revolution Challenges ------------ None Game ------ Seed BattleThermicClaw Manual? 0 Play Time 02:05:31 Cumulative 193.6 hours Start 2026.09.03 @ 03:05:53 End 2026.09.03 @ 05:12:16 Sessions 1 Manual Loads 0 Difficulty Rogue Special Mode None Game No. 381 Rogue 381 Adventurer 0 Explorer 0 Win Type - Total 2 Types 2/0/0/0/0/0/0/0/0/0 Lore% 59 Gallery% 61 Achievement% 48 Wizard Run 0 Options --------- Layout 2 ASCII 0 Keyboard 1 Movement Arrows Keybinds 0 Fullscreen 1 Font 24/Smallcaps Map View 50x44 Zoom Use 0% Tactical HUD 1 Map Filters NONE Filters NONE Steam 1 RUN: 94806249-4d11-427d-9332-4e31dcfd5b50